[Event "*** Titled Tuesday Blitz"]
[Site "Chess.com"]
[Date "2021.03.09"]
[Round "11"]
[White "Moon_stone123"]
[Black "Loy_Konstantin"]
[Result "1/2-1/2"]
[WhiteElo "2484"]
[BlackElo "2365"]
[TimeControl "180+1"]
[EndTime "12:12:37 PST"]
[Termination "Game drawn by 50-move rule"]

1. Nf3 {[%clk 0:02:55.3]} 1... c5 {[%clk 0:02:59.6]} 2. g3 {[%clk 0:02:56.2]}
2... g6 {[%clk 0:02:59.6]} 3. Bg2 {[%clk 0:02:55.9]} 3... Bg7 {[%clk 0:03:00.2]}
4. O-O {[%clk 0:02:55.6]} 4... Nc6 {[%clk 0:03:00.6]} 5. c4 {[%clk 0:02:55.6]}
5... Nf6 {[%clk 0:03:00.2]} 6. Nc3 {[%clk 0:02:55.4]} 6... O-O {[%clk
0:03:00.7]} 7. d4 {[%clk 0:02:55.1]} 7... cxd4 {[%clk 0:03:01.6]} 8. Nxd4 {[%clk
0:02:56]} 8... d6 {[%clk 0:03:01.9]} 9. Nxc6 {[%clk 0:02:54]} 9... bxc6 {[%clk
0:03:02.1]} 10. Bxc6 {[%clk 0:02:54.9]} 10... Rb8 {[%clk 0:03:02.5]} 11. Bg2
{[%clk 0:02:41.1]} 11... Qa5 {[%clk 0:03:02.1]} 12. Qa4 {[%clk 0:02:37.4]} 12...
Qxa4 {[%clk 0:03:00.5]} 13. Nxa4 {[%clk 0:02:37.1]} 13... Ng4 {[%clk 0:03:00.7]}
14. h3 {[%clk 0:02:30.2]} 14... Ne5 {[%clk 0:02:39.8]} 15. c5 {[%clk 0:02:29.4]}
15... Bd7 {[%clk 0:02:21.6]} 16. Nc3 {[%clk 0:02:10.6]} 16... dxc5 {[%clk
0:02:10]} 17. Rd1 {[%clk 0:02:11]} 17... Bc6 {[%clk 0:02:02.2]} 18. Nd5 {[%clk
0:02:04.8]} 18... Bxd5 {[%clk 0:01:49.8]} 19. Rxd5 {[%clk 0:02:03.8]} 19... Nc4
{[%clk 0:01:45]} 20. Rxc5 {[%clk 0:02:00.8]} 20... Nxb2 {[%clk 0:01:32.5]} 21.
Rb1 {[%clk 0:01:57.8]} 21... Na4 {[%clk 0:01:26.8]} 22. Rxb8 {[%clk 0:01:34.6]}
22... Rxb8 {[%clk 0:01:19.3]} 23. Rc7 {[%clk 0:01:34.6]} 23... Nc3 {[%clk
0:00:54.2]} 24. Be3 {[%clk 0:01:07.4]} 24... Nxa2 {[%clk 0:00:41.1]} 25. Rxa7
{[%clk 0:01:06.3]} 25... Nc3 {[%clk 0:00:39.2]} 26. Bf3 {[%clk 0:00:58.3]} 26...
Bf6 {[%clk 0:00:39.3]} 27. Kg2 {[%clk 0:00:58.1]} 27... Kg7 {[%clk 0:00:36]} 28.
g4 {[%clk 0:00:58.5]} 28... h6 {[%clk 0:00:34.2]} 29. Kg3 {[%clk 0:00:54.5]}
29... Rb2 {[%clk 0:00:31.2]} 30. h4 {[%clk 0:00:50.4]} 30... Nxe2+ {[%clk
0:00:28.3]} 31. Bxe2 {[%clk 0:00:51.3]} 31... Rxe2 {[%clk 0:00:28.8]} 32. g5
{[%clk 0:00:47.8]} 32... hxg5 {[%clk 0:00:28.5]} 33. hxg5 {[%clk 0:00:48.7]}
33... Rxe3+ {[%clk 0:00:22.4]} 34. fxe3 {[%clk 0:00:49.6]} 34... Bxg5 {[%clk
0:00:22.8]} 35. Kf3 {[%clk 0:00:49.3]} 35... Bf6 {[%clk 0:00:23]} 36. Ra5 {[%clk
0:00:48.9]} 36... Bc3 {[%clk 0:00:20.5]} 37. Rb5 {[%clk 0:00:48.7]} 37... e6
{[%clk 0:00:20]} 38. Rb7 {[%clk 0:00:49.1]} 38... Kf6 {[%clk 0:00:20.1]} 39. Rc7
{[%clk 0:00:49.1]} 39... Be5 {[%clk 0:00:20.1]} 40. Rc8 {[%clk 0:00:49.6]} 40...
Bd6 {[%clk 0:00:20.1]} 41. Rc6 {[%clk 0:00:48.7]} 41... Be5 {[%clk 0:00:20.2]}
42. Ra6 {[%clk 0:00:49.6]} 42... Kf5 {[%clk 0:00:19.2]} 43. Ra8 {[%clk
0:00:50.5]} 43... f6 {[%clk 0:00:18.7]} 44. Ra6 {[%clk 0:00:50.2]} 44... Bc3
{[%clk 0:00:16.8]} 45. Ra4 {[%clk 0:00:50.2]} 45... e5 {[%clk 0:00:15.6]} 46.
Rc4 {[%clk 0:00:50.6]} 46... Bb2 {[%clk 0:00:15.6]} 47. e4+ {[%clk 0:00:50.2]}
47... Kg5 {[%clk 0:00:15]} 48. Rc2 {[%clk 0:00:51.1]} 48... Bd4 {[%clk
0:00:14.6]} 49. Rg2+ {[%clk 0:00:52]} 49... Kh6 {[%clk 0:00:14.4]} 50. Kg4
{[%clk 0:00:51.6]} 50... Bc3 {[%clk 0:00:13.5]} 51. Rc2 {[%clk 0:00:51.2]} 51...
Bd4 {[%clk 0:00:13.1]} 52. Rc7 {[%clk 0:00:51.4]} 52... Be3 {[%clk 0:00:12.8]}
53. Rf7 {[%clk 0:00:50.8]} 53... Bg5 {[%clk 0:00:09.2]} 54. Rb7 {[%clk
0:00:47.8]} 54... Bf4 {[%clk 0:00:07.4]} 55. Ra7 {[%clk 0:00:46.9]} 55... Bg5
{[%clk 0:00:07.6]} 56. Rf7 {[%clk 0:00:46.2]} 56... f5+ {[%clk 0:00:06.1]} 57.
exf5 {[%clk 0:00:44.7]} 57... gxf5+ {[%clk 0:00:07]} 58. Kxf5 {[%clk 0:00:44.4]}
58... Bf4 {[%clk 0:00:07.9]} 59. Rb7 {[%clk 0:00:40.7]} 59... Bg3 {[%clk
0:00:07.7]} 60. Rb3 {[%clk 0:00:33.5]} 60... Bf4 {[%clk 0:00:07.9]} 61. Rb7
{[%clk 0:00:31]} 61... Bg3 {[%clk 0:00:07]} 62. Ra7 {[%clk 0:00:31.5]} 62... Bf4
{[%clk 0:00:07.1]} 63. Rf7 {[%clk 0:00:29.7]} 63... Bg3 {[%clk 0:00:06.2]} 64.
Rf6+ {[%clk 0:00:29.3]} 64... Kh5 {[%clk 0:00:05.9]} 65. Rf8 {[%clk 0:00:27.2]}
65... Kh6 {[%clk 0:00:06.2]} 66. Rf6+ {[%clk 0:00:26.5]} 66... Kh5 {[%clk
0:00:06.4]} 67. Ra6 {[%clk 0:00:27.4]} 67... Bf4 {[%clk 0:00:05.9]} 68. Ra1
{[%clk 0:00:27.8]} 68... Kh6 {[%clk 0:00:06]} 69. Rg1 {[%clk 0:00:27]} 69... Kh5
{[%clk 0:00:05.4]} 70. Rg6 {[%clk 0:00:27.9]} 70... Kh4 {[%clk 0:00:02.5]} 71.
Ke4 {[%clk 0:00:25]} 71... Kh5 {[%clk 0:00:02.4]} 72. Rg2 {[%clk 0:00:25.4]}
72... Kh4 {[%clk 0:00:02.5]} 73. Kf3 {[%clk 0:00:25.3]} 73... Kh3 {[%clk
0:00:02.6]} 74. Rg6 {[%clk 0:00:24]} 74... Kh4 {[%clk 0:00:03]} 75. Rg4+ {[%clk
0:00:23.3]} 75... Kh5 {[%clk 0:00:03.3]} 76. Rg1 {[%clk 0:00:22.2]} 76... Kh4
{[%clk 0:00:03.2]} 77. Ke4 {[%clk 0:00:22.3]} 77... Kh3 {[%clk 0:00:02.9]} 78.
Kf5 {[%clk 0:00:22.8]} 78... Kh2 {[%clk 0:00:02.5]} 79. Rg6 {[%clk 0:00:21.8]}
79... Kh3 {[%clk 0:00:02.9]} 80. Rg4 {[%clk 0:00:21.7]} 80... Kh2 {[%clk
0:00:02.9]} 81. Ke4 {[%clk 0:00:22.2]} 81... Kh3 {[%clk 0:00:03.2]} 82. Kf3
{[%clk 0:00:22.8]} 82... Kh2 {[%clk 0:00:02.4]} 83. Rh4+ {[%clk 0:00:20.2]}
83... Kg1 {[%clk 0:00:02.3]} 84. Rg4+ {[%clk 0:00:20.7]} 84... Kf1 {[%clk
0:00:02.2]} 85. Rg2 {[%clk 0:00:19.9]} 85... Ke1 {[%clk 0:00:02.3]} 86. Re2+
{[%clk 0:00:19.8]} 86... Kd1 {[%clk 0:00:02.5]} 87. Rf2 {[%clk 0:00:17.1]} 87...
Kc1 {[%clk 0:00:03.4]} 88. Ke4 {[%clk 0:00:15.9]} 88... Kd1 {[%clk 0:00:03.6]}
89. Kd3 {[%clk 0:00:15.7]} 89... Ke1 {[%clk 0:00:04.1]} 90. Rf3 {[%clk
0:00:14.8]} 90... Bh2 {[%clk 0:00:02.7]} 91. Rh3 {[%clk 0:00:14.2]} 91... Bf4
{[%clk 0:00:02.9]} 92. Rf3 {[%clk 0:00:13.8]} 92... Bh2 {[%clk 0:00:02.1]} 93.
Rf5 {[%clk 0:00:14.1]} 93... Bf4 {[%clk 0:00:03]} 94. Rh5 {[%clk 0:00:14.3]}
94... Kf2 {[%clk 0:00:03.3]} 95. Rh3 {[%clk 0:00:14.5]} 95... Kg2 {[%clk
0:00:03.2]} 96. Rh5 {[%clk 0:00:13.2]} 96... Kf2 {[%clk 0:00:04.1]} 97. Ke4
{[%clk 0:00:13.3]} 97... Kg3 {[%clk 0:00:03.4]} 98. Rh7 {[%clk 0:00:13.7]} 98...
Kg4 {[%clk 0:00:03.5]} 99. Rb7 {[%clk 0:00:14.6]} 99... Kg3 {[%clk 0:00:03.7]}
100. Rg7+ {[%clk 0:00:14.9]} 100... Kf2 {[%clk 0:00:04.6]} 101. Rb7 {[%clk
0:00:14.2]} 101... Kg3 {[%clk 0:00:04.5]} 102. Rb3+ {[%clk 0:00:15.1]} 102...
Kg4 {[%clk 0:00:04.6]} 103. Rb1 {[%clk 0:00:14.6]} 103... Kg3 {[%clk 0:00:04.7]}
104. Rg1+ {[%clk 0:00:14.8]} 104... Kf2 {[%clk 0:00:05.6]} 105. Rg8 {[%clk
0:00:13.5]} 105... Ke2 {[%clk 0:00:05.2]} 106. Rg2+ {[%clk 0:00:13.1]} 106...
Kf1 {[%clk 0:00:05.4]} 107. Kf3 {[%clk 0:00:13.2]} 107... Ke1 {[%clk 0:00:05.7]}
108. Ra2 {[%clk 0:00:12.1]} 1/2-1/2